bitfinex/quotes_SOLUSD_20250508
["timestamp","ask_amount","ask_price","bid_price","bid_amount"]
[1746711690653,31.89771753,155.18,155.13,31.89771753]
[1746711690872,31.89771753,155.17,155.13,31.89771753]
[1746711691153,31.89771753,155.17,155.09,26.0]
[1746711691372,31.89771753,155.17,155.13,31.89771753]
[1746711691684,31.89771753,155.18,155.13,31.89771753]
[1746711691881,22.55881404,155.15,155.09,26.0]
[1746711692055,22.55881404,155.15,155.11,31.89771753]
[1746711692256,22.55881404,155.15,155.12,31.89771753]
[1746711694859,6.44496004,155.16,155.14,31.89771753]
[1746711695083,6.44496004,155.16,155.15,31.89771753]
[1746711695468,22.55545393,155.18,155.15,31.89771753]
[1746711696686,22.55545393,155.18,155.1,6.44740738]
[1746711696687,22.55545393,155.18,155.16,31.89771753]
[1746711696880,4.08081804,155.17,155.16,31.89771753]
[1746711697583,10.52536273,155.17,155.16,31.89771753]
[1746711697761,10.52536273,155.17,155.15,31.89771753]
[1746711698081,10.52536273,155.17,155.16,31.89771753]
[1746711698885,10.52536273,155.17,155.15,31.89771753]
[1746711699182,26.63672446,155.17,155.15,31.89771753]
[1746711699384,10.52536273,155.17,155.16,31.89771753]
[1746711700284,10.52536273,155.17,155.12,31.89771753]
[1746711700484,10.52536273,155.17,155.16,31.89771753]
[1746711701771,4.08081804,155.17,155.16,31.89771753]
[1746711701990,4.08081804,155.17,155.16,39.98277757]
[1746711702166,4.08081804,155.17,155.16,33.53781753]
[1746711702366,6.44334499,155.2,155.16,33.53781753]
[1746711702689,6.44334499,155.2,155.16,1.6401]
[1746711702886,6.44334499,155.2,155.19,31.89771753]
[1746711703270,6.44334499,155.2,155.16,1.6401]
[1746711703465,6.44334499,155.2,155.19,31.89771753]
[1746711703673,4.06594511,155.2,155.19,31.89771753]
[1746711704479,6.44163875,155.24,155.19,31.89771753]
[1746711704772,6.44163875,155.24,155.23,31.89771753]
[1746711705491,6.44163875,155.24,155.22,31.89771753]
[1746711705689,6.44163875,155.24,155.18,26.0]
[1746711705690,22.54374019,155.26,155.23,31.89771753]
[1746711705891,54.44145772,155.26,155.22,31.89771753]
[1746711706081,22.54374019,155.26,155.22,31.89771753]
[1746711706277,22.54374019,155.26,155.23,31.89771753]
[1746711706777,22.54374019,155.26,155.24,31.89771753]
[1746711707087,22.54374019,155.26,155.25,31.89771753]
[1746711707488,6.44080896,155.26,155.24,31.89771753]
[1746711707792,31.89771753,155.29,155.25,31.89771753]
[1746711707793,6.43997939,155.28,155.25,31.89771753]
[1746711707997,6.43997939,155.28,155.24,31.89771753]
[1746711708491,6.43997939,155.28,155.25,31.89771753]
[1746711708692,4.14081956,155.27,155.25,31.89771753]
[1746711709212,4.14081956,155.27,155.26,31.89771753]
[1746711709491,4.14081956,155.27,155.25,31.89771753]
[1746711709908,4.14081956,155.27,155.26,31.89771753]
[1746711710707,6.43873543,155.31,155.26,31.89771753]
[1746711710905,38.33616861,155.32,155.28,31.89771753]
[1746711711203,6.43707756,155.35,155.31,31.89771753]
[1746711711709,6.43707756,155.35,155.32,31.89771753]
[1746711711884,54.422629,155.39,155.34,31.89771753]
[1746711712069,54.422629,155.39,155.29,26.0]
[1746711712070,31.89771753,155.37,155.29,26.0]
[1746711712405,31.89771753,155.35,155.3,31.89771753]
[1746711712874,31.89771753,155.32,155.26,32.5206]
[1746711713094,31.89771753,155.36,155.31,31.89771753]
[1746711713310,31.89771753,155.37,155.33,31.89771753]
[1746711713484,62.03076914,155.38,155.34,31.89771753]
[1746711713685,4.13305161,155.37,155.35,31.89771753]
[1746711713919,6.43666323,155.36,155.35,31.89771753]
[1746711715100,22.52832131,155.36,155.33,31.89771753]
[1746711715738,6.43666323,155.36,155.35,31.89771753]
[1746711716029,16.08947208,155.39,155.35,31.89771753]
[1746711716197,16.08947208,155.39,155.37,31.89771753]
[1746711716905,6.43500643,155.4,155.38,31.89771753]
[1746711717109,6.43500643,155.4,155.39,31.89771753]
[1746711717414,6.43500643,155.4,155.38,31.89771753]
[1746711717911,6.43459236,155.41,155.38,31.89771753]
[1746711718108,22.52107328,155.41,155.37,31.89771753]
[1746711718623,22.52107328,155.41,155.32,26.66595559]
[1746711718624,31.89771753,155.39,155.32,1.5781]
[1746711718813,31.89771753,155.39,155.34,31.89771753]
[1746711719320,31.89771753,155.38,155.34,31.89771753]
[1746711719622,31.89771753,155.37,155.33,26.0]
[1746711719928,6.43666323,155.36,155.33,31.89771753]
[1746711720109,6.43666323,155.36,155.34,31.89771753]
[1746711720307,6.43666323,155.36,155.35,31.89771753]
[1746711721722,6.43542055,155.39,155.35,57.89771753]
[1746711721898,6.43417835,155.42,155.38,31.89771753]
[1746711722092,6.43417835,155.42,155.39,31.89771753]
[1746711722428,6.43417835,155.42,155.4,31.89771753]
[1746711722796,6.43417835,155.42,155.41,31.89771753]
[1746711723003,6.43417835,155.42,155.4,31.89771753]
[1746711723496,6.43417835,155.42,155.41,31.89771753]
[1746711724238,6.43293663,155.45,155.41,31.89771753]
[1746711724388,6.43293663,155.45,155.42,31.89771753]
[1746711724590,6.43293663,155.45,155.44,31.89771753]
[1746711725799,16.08008472,155.48,155.44,31.89771753]
[1746711725997,16.08008472,155.48,155.45,31.89771753]
[1746711726204,22.50803857,155.5,155.46,31.89771753]
[1746711726405,22.50803857,155.5,155.47,31.89771753]
[1746711726601,6.43086816,155.5,155.49,31.89771753]
[1746711727495,6.43004115,155.52,155.49,31.89771753]
[1746711727692,16.07503677,155.53,155.51,31.89771753]
[1746711728027,16.07503677,155.53,155.47,1.6208]
[1746711728028,16.07503677,155.53,155.5,31.89771753]
[1746711728851,16.07503677,155.53,155.47,1.6208]
[1746711728852,16.07503677,155.53,155.51,31.89771753]
[1746711729130,6.42921435,155.54,155.52,31.89771753]
[1746711729335,6.42921435,155.54,155.53,31.89771753]
[1746711729706,16.06873849,155.59,155.53,31.89771753]
[1746711729907,6.42632221,155.61,155.58,31.89771753]
[1746711730245,22.49212774,155.61,155.58,31.89771753]
[1746711731643,16.06580553,155.61,155.58,31.89771753]
[1746711731844,47.96352306,155.61,155.55,19.78]
[1746711732145,47.96352306,155.61,155.57,31.89771753]
[1746711732328,16.06580553,155.61,155.57,31.89771753]
[1746711732508,47.96352306,155.61,155.55,19.78]
[1746711733021,47.96352306,155.61,155.57,31.89771753]
[1746711733420,31.89771753,155.6,155.55,19.78]
[1746711733721,31.89771753,155.6,155.56,31.89771753]
[1746711733926,6.42714827,155.59,155.57,31.89771753]
[1746711734134,6.42714827,155.59,155.58,31.89771753]
[1746711734648,6.42714827,155.59,155.55,19.78]
[1746711734823,6.42714827,155.59,155.57,31.89771753]
[1746711735011,6.42714827,155.59,155.58,31.89771753]
[1746711735212,0.043575,155.62,155.59,18.64964886]
[1746711735515,0.043575,155.62,155.61,31.89771753]
[1746711737033,0.043575,155.62,155.61,57.89771753]
[1746711737532,0.043575,155.62,155.61,31.89771753]
[1746711737740,0.043575,155.62,155.59,26.0]
[1746711738037,0.043575,155.62,155.61,48.10305148]
[1746711738544,0.043575,155.62,155.61,207.69902255]
[1746711739037,0.043575,155.62,155.61,162.51270034]
[1746711739547,0.043575,155.62,155.61,300.69902255]
[1746711740328,16.05415123,155.73,155.66,18.64964886]
[1746711740536,16.05415123,155.73,155.7,48.10305148]
[1746711740739,16.05415123,155.73,155.64,26.0]
[1746711741038,48.10305148,155.7,155.66,48.10305148]
[1746711741438,48.10305148,155.7,155.65,48.10305148]
[1746711741827,48.10305148,155.7,155.66,48.10305148]
[1746711742012,22.48057036,155.69,155.66,48.10305148]
[1746711742215,22.48057036,155.69,155.64,26.0]
[1746711742216,22.48057036,155.69,155.68,48.10305148]
[1746711742432,22.48057036,155.69,155.64,26.0]
[1746711743044,22.48057036,155.69,155.66,48.10305148]
[1746711743248,70.58362184,155.69,155.65,48.10305148]
[1746711743453,22.48057036,155.69,155.62,26.0]
[1746711743652,70.58362184,155.69,155.65,48.10305148]
[1746711744131,70.58362184,155.69,155.64,48.10305148]
[1746711744132,48.10305148,155.68,155.64,48.10305148]
[1746711744466,48.10305148,155.66,155.58,6.2735]
[1746711744639,48.10305148,155.63,155.57,19.76]
[1746711744965,48.10305148,155.61,155.53,1.518]
[1746711745129,48.10305148,155.61,155.57,48.10305148]
[1746711745333,48.10305148,155.62,155.57,48.10305148]
[1746711745751,48.10305148,155.61,155.57,48.10305148]
[1746711745944,48.10305148,155.6,155.52,260.66]
[1746711746150,22.49501895,155.59,155.54,48.10305148]
[1746711746356,6.42508352,155.64,155.58,48.10305148]
[1746711746550,6.42508352,155.64,155.63,48.10305148]
[1746711746950,6.42508352,155.64,155.6,48.10305148]
[1746711747130,6.42508352,155.64,155.63,48.10305148]
[1746711748146,6.42343268,155.68,155.64,18.64964886]
[1746711748356,6.42343268,155.68,155.67,48.10305148]
[1746711750033,48.10305148,155.72,155.63,26.0]
[1746711750234,48.10305148,155.71,155.63,26.0]
[1746711750537,48.10305148,155.71,155.66,48.10305148]
[1746711750759,48.10305148,155.7,155.65,48.10305148]
[1746711750942,48.10305148,155.67,155.63,48.10305148]
[1746711751145,48.10305148,155.66,155.62,48.10305148]
[1746711751344,32.2468,155.69,155.62,48.10305148]
[1746711751554,32.2468,155.69,155.58,19.76]
[1746711751555,48.10305148,155.64,155.58,19.76]
[1746711751734,48.10305148,155.63,155.58,67.86305148]
[1746711751936,48.10305148,155.62,155.58,19.76]
[1746711752234,48.10305148,155.63,155.58,67.86305148]
[1746711752650,48.10305148,155.63,155.59,48.10305148]
[1746711753262,48.10305148,155.63,155.58,67.86305148]
[1746711753443,48.10305148,155.63,155.59,48.10305148]
[1746711753642,22.49068242,155.62,155.59,48.10305148]
[1746711753946,22.49068242,155.62,155.58,67.86305148]
[1746711754365,22.49068242,155.62,155.6,48.10305148]
[1746711754538,22.49068242,155.62,155.58,19.76]
[1746711754742,22.49068242,155.62,155.55,26.0]
[1746711754939,22.49068242,155.62,155.59,48.10305148]
[1746711756071,16.06477316,155.62,155.59,48.10305148]
[1746711756265,64.16782464,155.62,155.57,48.10305148]
[1746711756472,48.10305148,155.6,155.54,240.7]
[1746711756649,48.10305148,155.6,155.56,48.10305148]
[1746711756842,64.16782464,155.62,155.53,19.58]
[1746711757037,48.10305148,155.61,155.56,48.10305148]
[1746711757263,48.10305148,155.6,155.53,19.58]
[1746711757565,48.10305148,155.59,155.55,48.10305148]
[1746711757768,48.10305148,155.57,155.53,19.58]
[1746711757942,22.4979109,155.57,155.55,48.10305148]
[1746711758255,6.42797454,155.57,155.56,48.10305148]
[1746711759064,22.4979109,155.57,155.5,18.64964886]
[1746711759267,22.4979109,155.57,155.55,48.10305148]
[1746711760161,16.06993636,155.57,155.55,48.10305148]
[1746711760364,16.06993636,155.57,155.48,19.58]
[1746711760545,48.10305148,155.54,155.49,48.10305148]
[1746711760966,48.10305148,155.53,155.44,288.76305148]
[1746711761182,48.10305148,155.52,155.44,240.66]
[1746711761663,48.10305148,155.53,155.48,48.10305148]
[1746711761968,48.10305148,155.52,155.47,48.10305148]
[1746711762165,22.50948613,155.49,155.43,19.6]
[1746711762367,70.61253761,155.49,155.44,48.10305148]
[1746711762668,48.10305148,155.46,155.41,48.10305148]
[1746711762865,48.10305148,155.46,155.42,48.10305148]
[1746711763170,48.10305148,155.44,155.39,48.10305148]
[1746711763363,48.10305148,155.43,155.38,67.70305148]
[1746711763566,48.10305148,155.43,155.33,56.1928]
[1746711763567,48.10305148,155.44,155.4,48.10305148]
[1746711764272,22.51817537,155.43,155.39,48.10305148]
[1746711764568,70.62122685,155.43,155.38,48.10305148]
[1746711764770,70.62122685,155.43,155.39,48.10305148]
[1746711764966,70.62122685,155.43,155.37,26.0]
[1746711765266,70.62122685,155.43,155.39,48.10305148]
[1746711765470,22.51817537,155.43,155.39,48.10305148]
[1746711766179,102.79004882,155.43,155.37,26.0]
[1746711766467,48.10305148,155.42,155.37,48.10305148]
[1746711766779,48.10305148,155.41,155.36,48.10305148]
[1746711767351,54.68699734,155.43,155.36,48.10305148]
[1746711767558,48.10305148,155.41,155.36,48.10305148]
[1746711768260,48.10305148,155.39,155.34,26.0]
[1746711768468,48.10305148,155.39,155.35,48.10305148]
[1746711768675,48.10305148,155.39,155.33,19.6]
[1746711768858,48.10305148,155.38,155.33,26.0]
[1746711769060,54.69403512,155.41,155.33,26.0]
[1746711769061,48.10305148,155.39,155.35,48.10305148]
[1746711769369,48.10305148,155.39,155.33,26.0]
[1746711769564,48.10305148,155.39,155.34,48.10305148]
[1746711770268,22.52542153,155.38,155.33,26.0]
[1746711770495,22.52542153,155.38,155.34,48.10305148]
[1746711770658,22.52542153,155.38,155.35,48.10305148]
[1746711770862,70.62847301,155.38,155.33,26.0]
[1746711771060,48.10305148,155.36,155.28,19.6]
[1746711771372,48.10305148,155.34,155.3,48.10305148]
[1746711771889,48.10305148,155.35,155.31,48.10305148]
[1746711772084,48.10305148,155.36,155.31,48.10305148]
[1746711772255,54.70459516,155.38,155.32,48.10305148]
[1746711772570,48.10305148,155.37,155.32,48.10305148]
[1746711772966,48.10305148,155.37,155.33,48.10305148]
[1746711774064,48.10305148,155.36,155.32,48.10305148]
[1746711774270,48.10305148,155.36,155.31,26.0]
[1746711774464,6.43707756,155.35,155.31,48.10305148]
[1746711774665,48.10305148,155.33,155.28,19.6]
[1746711774981,22.52977147,155.35,155.27,26.0]
[1746711774982,48.10305148,155.34,155.27,26.0]
[1746711775284,48.10305148,155.34,155.29,48.10305148]
[1746711775780,48.10305148,155.33,155.24,240.86]
[1746711775982,22.53412309,155.32,155.28,48.10305148]
[1746711776159,22.53412309,155.32,155.24,240.86]
[1746711776483,22.53412309,155.32,155.28,48.10305148]
[1746711777776,6.43832088,155.32,155.3,48.10305148]
[1746711777979,6.43749195,155.34,155.3,48.10305148]
[1746711778175,6.43749195,155.34,155.21,6.44264886]
[1746711778176,48.10305148,155.31,155.21,6.44264886]
[1746711778385,48.10305148,155.26,155.21,26.0]
[1746711778584,48.10305148,155.26,155.21,74.10305148]
[1746711778777,48.10305148,155.25,155.22,26.0]
[1746711779175,48.10305148,155.25,155.2,48.10305148]
[1746711779382,48.10305148,155.26,155.21,48.10305148]
[1746711779697,48.10305148,155.27,155.22,48.10305148]
[1746711779894,48.10305148,155.25,155.18,19.62]
[1746711780183,6.44080896,155.26,155.18,26.06412571]
[1746711780362,54.54386044,155.26,155.21,48.10305148]
[1746711780785,6.44080896,155.26,155.18,26.06412571]
[1746711780991,54.54386044,155.26,155.21,48.10305148]
[1746711781170,12.45468721,155.28,155.23,48.10305148]
[1746711781370,6.44018721,155.28,155.24,48.10305148]
[1746711781572,54.54323869,155.28,155.23,48.10305148]
[1746711782078,54.54261616,155.29,155.24,48.10305148]
[1746711782277,54.54261616,155.29,155.25,48.10305148]
[1746711782484,54.54261616,155.29,155.24,48.10305148]
[1746711782885,54.54261616,155.29,155.22,26.0]
[1746711783077,54.54261616,155.29,155.24,48.10305148]
[1746711783473,6.43956468,155.29,155.27,48.10305148]
[1746711783680,6.43912968,155.31,155.28,48.10305148]
[1746711783990,54.54218116,155.31,155.23,1.6282]
[1746711784189,54.54261616,155.29,155.2,130.90305148]
[1746711784396,54.54261616,155.29,155.26,48.10305148]
[1746711784397,22.53847639,155.29,155.26,48.10305148]
[1746711784578,6.43956468,155.29,155.27,48.10305148]
[1746711784775,6.43956468,155.29,155.23,26.0]
[1746711785081,6.43956468,155.29,155.26,48.10305148]
[1746711785495,6.43956468,155.29,155.28,48.10305148]
[1746711785693,6.0463,155.36,155.28,96.20610296]
[1746711786004,6.43666323,155.36,155.35,48.10305148]
[1746711786303,6.43624895,155.37,155.35,48.10305148]
[1746711786473,22.52687133,155.37,155.31,26.0]
[1746711786673,48.10305148,155.36,155.27,110.4346]
[1746711786883,48.10305148,155.36,155.31,48.10305148]
[1746711787074,102.81116758,155.37,155.32,48.10305148]
[1746711787470,66.75270034,155.36,155.31,48.10305148]
[1746711787889,48.10305148,155.35,155.31,48.10305148]
[1746711789002,22.53122183,155.34,155.31,48.10305148]
[1746711789374,22.53122183,155.34,155.32,48.10305148]
[1746711789580,22.53122183,155.34,155.31,48.10305148]
[1746711791003,16.09372988,155.34,155.31,48.10305148]
[1746711791675,16.09372988,155.34,155.32,48.10305148]
[1746711791871,16.09372988,155.34,155.33,48.10305148]
[1746711792072,16.09372988,155.34,155.32,48.10305148]
[1746711792403,16.09372988,155.34,155.33,48.10305148]
[1746711793094,102.81468895,155.36,155.27,26.0]
[1746711793298,48.10305148,155.35,155.3,48.10305148]
[1746711794288,54.71163747,155.36,155.3,48.10305148]
[1746711794603,102.81468895,155.36,155.31,48.10305148]
[1746711795011,22.53122183,155.34,155.3,48.10305148]
[1746711795298,22.53122183,155.34,155.31,48.10305148]
[1746711796778,22.53122183,155.34,155.3,48.10305148]
[1746711796983,70.63427331,155.34,155.3,48.10305148]
[1746711797185,22.53122183,155.34,155.31,48.10305148]
[1746711797507,22.53122183,155.34,155.27,26.0]
[1746711797714,48.10305148,155.33,155.24,19.5]
[1746711798002,48.10305148,155.31,155.26,48.10305148]
[1746711798214,48.10305148,155.3,155.26,48.10305148]
[1746711798506,143.1989,155.32,155.29,48.10305148]
[1746711798705,136.6,155.32,155.23,34.02851351]
[1746711798909,54.71868159,155.34,155.31,48.10305148]
[1746711799106,16.09372988,155.34,155.32,48.10305148]
[1746711799289,16.09372988,155.34,155.27,26.0]
[1746711799489,16.09372988,155.34,155.3,48.10305148]
[1746711799706,16.09372988,155.34,155.31,48.10305148]
[1746711800011,16.09372988,155.34,155.32,48.10305148]
[1746711800303,16.09372988,155.34,155.33,48.10305148]
[1746711800809,16.09372988,155.34,155.32,48.10305148]
[1746711801605,16.09372988,155.34,155.31,48.10305148]
[1746711803302,16.09372988,155.34,155.32,48.10305148]
[1746711804385,16.09372988,155.34,155.31,48.10305148]
[1746711804989,6.43707756,155.35,155.33,48.10305148]
[1746711805389,22.52977147,155.35,155.32,48.10305148]
[1746711805806,22.52977147,155.35,155.32,31.84529657]
[1746711806603,22.52977147,155.35,155.28,57.84529657]
[1746711806793,22.52977147,155.35,155.33,31.84529657]
[1746711806993,54.3721679,155.37,155.32,31.84529657]
[1746711807599,22.52687133,155.37,155.33,31.84529657]
[1746711807995,22.52687133,155.37,155.34,31.84529657]
[1746711808592,22.52687133,155.37,155.33,31.84529657]
[1746711810091,22.52687133,155.37,155.31,31.84529657]
[1746711810092,31.84529657,155.36,155.31,31.84529657]
[1746711810408,31.84529657,155.36,155.32,31.84529657]
[1746711810710,54.3721679,155.37,155.32,31.84529657]
[1746711810911,31.84529657,155.36,155.28,26.0]
[1746711811209,22.53267237,155.33,155.29,31.84529657]
[1746711811410,22.53267237,155.33,155.3,31.84529657]
[1746711812610,22.53267237,155.33,155.29,31.84529657]
[1746711812800,22.53267237,155.33,155.31,31.84529657]
[1746711813001,6.43790639,155.33,155.32,31.84529657]
[1746711813312,16.09269662,155.35,155.32,31.84529657]
[1746711813816,16.09269662,155.35,155.33,31.84529657]
[1746711814011,6.43666323,155.36,155.34,31.84529657]
[1746711814888,22.52687133,155.37,155.34,31.84529657]
[1746711815502,22.52687133,155.37,155.35,31.84529657]
[1746711816102,136.6,155.43,155.36,63.69059314]
[1746711816315,6.1124,155.44,155.4,31.84529657]
[1746711816516,31.84529657,155.43,155.38,31.84529657]
[1746711816818,31.84529657,155.4,155.35,31.84529657]
[1746711817005,22.52397193,155.39,155.35,31.84529657]
[1746711817911,54.3692685,155.39,155.34,31.84529657]
[1746711818113,31.84529657,155.38,155.33,31.84529657]
[1746711818418,31.84529657,155.38,155.34,31.84529657]
[1746711819009,54.7010747,155.39,155.31,47.1244]
[1746711819010,31.84529657,155.36,155.31,19.46]
[1746711819320,54.3721679,155.37,155.32,31.84529657]
[1746711819715,31.84529657,155.36,155.31,31.84529657]
[1746711819913,31.84529657,155.36,155.27,1.5407]
[1746711820109,31.84529657,155.36,155.31,31.84529657]
[1746711820301,86.55341267,155.37,155.32,31.84529657]
[1746711821219,31.84529657,155.36,155.31,31.84529657]
[1746711821421,22.52687133,155.37,155.32,31.84529657]
[1746711821617,22.52687133,155.37,155.35,31.84529657]
[1746711821812,6.43624895,155.37,155.36,31.84529657]
[1746711822313,136.6,155.39,155.36,31.84529657]
[1746711822314,6.43600709,155.38,155.36,31.84529657]
[1746711822516,6.43600709,155.38,155.37,31.84529657]
[1746711823223,16.08549465,155.42,155.37,31.84529657]
[1746711823411,6.43376439,155.43,155.41,31.84529657]
[1746711823721,6.43376439,155.43,155.36,31.84529657]
[1746711823722,6.43376439,155.43,155.4,31.84529657]
[1746711823919,31.84529657,155.42,155.35,1.5691]
[1746711824119,31.84529657,155.42,155.37,31.84529657]
[1746711824306,31.84529657,155.42,155.35,26.0]
[1746711824622,31.84529657,155.42,155.38,31.84529657]
[1746711825011,54.68699734,155.43,155.38,31.84529657]
[1746711825210,22.52107328,155.41,155.38,31.84529657]
[1746711825904,86.53933169,155.41,155.37,31.84529657]
[1746711826525,54.69403512,155.41,155.37,31.84529657]
[1746711826715,54.69403512,155.41,155.38,31.84529657]
[1746711827109,86.53933169,155.41,155.37,31.84529657]
[1746711827517,54.69403512,155.41,155.37,31.84529657]
[1746711828025,4.06388051,155.4,155.37,31.84529657]
[1746711828806,6.43542055,155.39,155.37,31.84529657]
[1746711829344,4.06388051,155.38,155.36,31.84529657]
[1746711829626,4.06388051,155.38,155.37,31.84529657]
[1746711831025,10.49971523,155.38,155.37,31.84529657]
[1746711833731,161.79724886,155.37,155.23,1.5212]
[1746711833908,161.79724886,155.37,155.24,31.84529657]
[1746711833909,31.84529657,155.29,155.24,31.84529657]
[1746711834328,18.64964886,155.33,155.26,31.84529657]
[1746711834531,31.84529657,155.31,155.26,31.84529657]
[1746711834815,31.84529657,155.3,155.26,31.84529657]
[1746711835236,6.43956468,155.29,155.26,31.84529657]
[1746711835531,10.50344519,155.29,155.26,31.84529657]
[1746711835914,4.06388051,155.29,155.28,31.84529657]
[1746711836335,6.43873543,155.31,155.27,31.84529657]
[1746711836631,38.284032,155.31,155.27,31.84529657]
[1746711837032,4.06388051,155.3,155.27,31.84529657]
[1746711837239,10.50310309,155.3,155.27,31.84529657]
[1746711837413,4.06388051,155.3,155.28,31.84529657]
[1746711837614,4.06388051,155.3,155.27,31.84529657]
[1746711838022,6.43873543,155.31,155.27,31.84529657]
[1746711838219,50.49494543,155.35,155.3,31.84529657]
[1746711838407,6.43707756,155.35,155.31,31.84529657]
[1746711838606,6.43707756,155.35,155.32,31.84529657]
[1746711838830,6.43707756,155.35,155.33,31.84529657]
[1746711839043,6.43707756,155.35,155.28,31.84529657]
[1746711839337,4.06612503,155.34,155.33,31.84529657]
[1746711841842,4.06612503,155.34,155.33,64.28320296]
[1746711842038,4.06612503,155.34,155.33,57.84529657]
[1746711842431,4.06612503,155.34,155.33,64.28320296]
[1746711842745,22.52252251,155.4,155.33,57.84529657]
[1746711843042,54.36781908,155.4,155.35,31.84529657]
[1746711843357,31.84529657,155.38,155.33,57.84529657]
[1746711843646,54.36781908,155.4,155.36,31.84529657]
[1746711844240,22.52252251,155.4,155.37,31.84529657]
[1746711845342,18.64964886,155.37,155.23,84.3833]
[1746711845542,31.84529657,155.32,155.28,31.84529657]
[1746711845721,6.43915003,155.3,155.23,20.9833]
[1746711846043,38.2844466,155.3,155.26,31.84529657]
[1746711846228,6.43915003,155.3,155.27,31.84529657]
[1746711847448,6.43915003,155.3,155.28,31.84529657]
[1746711847743,22.53702511,155.3,155.27,31.84529657]
[1746711849746,4.26199431,155.29,155.27,31.84529657]
[1746711849951,6.43997939,155.28,155.26,57.84529657]
[1746711850550,6.43997939,155.28,155.27,31.84529657]
[1746711850855,10.7019737,155.28,155.27,31.84529657]
[1746711851824,6.43997939,155.28,155.27,31.84529657]
[1746711852119,54.37796894,155.33,155.27,31.84529657]
[1746711852321,54.37796894,155.33,155.28,31.84529657]
[1746711852745,4.26580532,155.32,155.29,31.84529657]
[1746711853056,6.43873543,155.31,155.29,31.84529657]
[1746711853654,4.26580532,155.3,155.29,31.84529657]
[1746711854051,10.70495535,155.3,155.29,31.84529657]
[1746711854238,10.70495535,155.3,155.28,31.84529657]
[1746711854743,4.26580532,155.29,155.28,31.84529657]
[1746711855425,10.70537,155.29,155.28,31.84529657]
[1746711855842,10.70537,155.29,155.27,31.84529657]
[1746711856446,10.70537,155.29,155.28,31.84529657]
[1746711858135,10.70537,155.29,155.27,31.84529657]
[1746711858337,26.80428171,155.29,155.26,31.84529657]
[1746711858546,26.80428171,155.29,155.23,46.9833]
[1746711858547,58.64957828,155.29,155.2,31.84529657]
[1746711858744,31.84529657,155.27,155.19,1.6439]
[1746711858939,31.84529657,155.27,155.23,31.84529657]
[1746711859448,22.54283137,155.26,155.23,31.84529657]
[1746711859832,6.44080896,155.26,155.24,31.84529657]
[1746711860235,4.26580532,155.25,155.24,31.84529657]
[1746711860840,4.26580532,155.25,155.2,31.84529657]
[1746711861131,6.44080896,155.26,155.24,31.84529657]
[1746711861526,6.44080896,155.26,155.16,98.91236525]
[1746711861527,18.64964886,155.2,155.13,31.84529657]
[1746711861727,31.84529657,155.18,155.09,8.00162636]
[1746711861948,31.84529657,155.17,155.1,26.0]
[1746711862151,31.84529657,155.17,155.09,1.5539]
[1746711862327,31.84529657,155.18,155.13,31.84529657]
[1746711863262,31.84529657,155.16,155.11,57.84529657]
[1746711863449,31.84529657,155.16,155.11,31.84529657]
[1746711863748,6.44537544,155.15,155.09,1.5539]
[1746711863922,6.44537544,155.15,155.11,31.84529657]
[1746711864126,6.44537544,155.15,155.09,1.5539]
[1746711864324,6.44537544,155.15,155.11,31.84529657]
[1746711864756,6.44537544,155.15,155.12,31.84529657]
[1746711865650,6.44537544,155.15,155.13,31.84529657]
[1746711866148,6.44454469,155.17,155.13,31.84529657]
[1746711866350,6.44454469,155.17,155.14,31.84529657]
[1746711867551,6.44412939,155.18,155.14,31.84529657]
[1746711867749,6.44412939,155.18,155.15,31.84529657]
[1746711867956,6.44385029,155.19,155.15,31.84529657]
[1746711869655,6.44385029,155.19,155.16,31.84529657]
[1746711870346,6.44385029,155.19,155.13,6.44615775]
[1746711870347,6.44385029,155.19,155.17,31.84529657]
[1746711871252,6.44385029,155.19,155.16,31.84529657]
[1746711871456,6.44385029,155.19,155.12,64.29180897]
[1746711871457,38.28914686,155.19,155.15,31.84529657]
[1746711871654,6.44385029,155.19,155.16,31.84529657]
[1746711871837,6.44385029,155.19,155.15,31.84529657]
[1746711872347,6.44385029,155.19,155.16,31.84529657]
[1746711872537,6.44385029,155.19,155.17,31.84529657]
[1746711872738,6.44246875,155.22,155.18,31.84529657]
[1746711873054,6.44246875,155.22,155.19,31.84529657]
[1746711874838,6.44205372,155.23,155.2,31.84529657]
[1746711875159,6.44205372,155.23,155.21,31.84529657]
[1746711875353,6.44205372,155.23,155.2,31.84529657]
[1746711876050,54.3924846,155.23,155.18,31.84529657]
[1746711876258,54.3924846,155.23,155.17,26.0]
[1746711876259,22.54718803,155.23,155.19,31.84529657]
[1746711877160,54.3924846,155.23,155.18,31.84529657]
[1746711877458,31.84529657,155.2,155.16,31.84529657]
[1746711877659,31.84529657,155.2,155.15,31.84529657]
[1746711878031,18.64964886,155.22,155.15,31.84529657]
[1746711878258,31.84529657,155.2,155.15,31.84529657]
[1746711878463,18.64964886,155.22,155.16,31.84529657]
[1746711878654,31.84529657,155.21,155.16,31.84529657]
[1746711879241,22.55154638,155.2,155.16,31.84529657]